bitfinex-derivatives/quotes_BNBF0:USTF0_20250523
["timestamp","ask_amount","ask_price","bid_price","bid_amount"]
[1747961023501,1.05338227,685.41,684.36,0.29224384]
[1747961025404,2.14174431,685.43,684.36,0.29224384]
[1747961026505,1.05338227,685.42,684.36,0.29224384]
[1747961027706,1.05338227,685.41,684.36,0.29224384]
[1747961028807,1.05338227,685.4,684.36,0.29224384]
[1747961030406,1.05338227,685.39,684.36,0.29224384]
[1747961031308,1.05338227,685.38,684.36,0.29224384]
[1747961032810,1.05338227,685.37,684.36,0.29224384]
[1747961033610,1.05338227,685.36,684.36,0.29224384]
[1747961035207,1.05338227,685.35,684.36,0.29224384]
[1747961035713,1.05338227,685.35,683.7,3.00701943]
[1747961035911,1.05338227,685.35,683.72,0.2925174]
[1747961036815,1.05338227,685.34,683.72,0.2925174]
[1747961038511,1.08836204,685.28,683.72,0.2925174]
[1747961039816,1.05338227,685.27,683.72,0.2925174]
[1747961041218,1.05338227,685.26,683.72,0.2925174]
[1747961042519,1.05338227,685.25,683.72,0.2925174]
[1747961043819,1.05338227,685.24,683.72,0.2925174]
[1747961045019,1.05338227,685.23,683.72,0.2925174]
[1747961046914,1.05338227,685.25,683.72,0.2925174]
[1747961048117,1.289,685.24,683.72,0.2925174]
[1747961048618,1.05338227,685.23,683.72,0.2925174]
[1747961049621,1.05338227,685.22,683.72,0.2925174]
[1747961051224,1.05338227,685.21,683.72,0.2925174]
[1747961053119,1.05338227,685.23,683.72,0.2925174]
[1747961055028,1.05338227,685.23,683.8,3.00701943]
[1747961055222,1.05338227,685.23,683.82,0.29247462]
[1747961068342,1.05338227,685.23,683.87,0.46409398]
[1747961068535,1.05338227,685.23,683.88,0.29244896]
[1747961068842,1.05338227,685.23,684.19,3.00701943]
[1747961074146,1.05338227,685.22,684.19,3.00701943]
[1747961075748,1.05338227,685.21,684.19,3.00701943]
[1747961077148,1.05338227,685.2,684.19,3.00701943]
[1747961078452,1.05338227,685.19,684.19,3.00701943]
[1747961079855,1.05338227,685.18,684.19,3.00701943]
[1747961081458,1.05338227,685.17,683.98,4.21014867]
[1747961081653,1.05338227,685.17,683.99,0.29240193]
[1747961082458,1.05338227,685.16,683.99,0.29240193]
[1747961084055,1.05338227,685.15,683.99,0.29240193]
[1747961085162,1.05338227,685.14,683.99,0.29240193]
[1747961086362,1.05338227,685.13,683.99,0.29240193]
[1747961087056,1.289,685.24,683.99,0.29240193]
[1747961087057,1.05338227,685.12,683.99,0.29240193]
[1747961088959,1.05338227,685.23,683.99,0.29240193]
[1747961094767,1.05338227,685.46,683.99,0.29240193]
[1747961096170,1.05338227,685.45,683.99,0.29240193]
[1747961096971,1.023,685.44,683.99,0.29240193]
[1747961097666,1.05338227,685.43,683.99,0.29240193]
[1747961098966,1.05338227,685.42,683.99,0.29240193]
[1747961099871,1.05338227,685.41,683.99,0.29240193]
[1747961100866,1.05338227,685.4,683.99,0.29240193]
[1747961101971,1.08836204,685.27,684.04,3.00701943]
[1747961103367,1.05338227,685.26,684.04,3.00701943]
[1747961104273,1.05338227,685.25,684.04,3.00701943]
[1747961105472,1.05338227,685.24,684.04,3.00701943]
[1747961107075,1.05338227,685.23,684.04,3.00701943]
[1747961108275,1.05338227,685.22,684.04,3.00701943]
[1747961109274,1.05338227,685.21,684.04,3.00701943]
[1747961110274,1.05338227,685.2,684.04,3.00701943]
[1747961111675,1.05338227,685.19,684.04,3.00701943]
[1747961112375,1.05338227,685.19,684.05,0.29237628]
[1747961113074,1.05338227,685.33,684.05,0.29237628]
[1747961115275,2.14174431,685.32,684.06,3.00701943]
[1747961115475,2.14174431,685.32,684.07,0.29236774]
[1747961116874,1.05338227,685.31,684.07,0.29236774]
[1747961118076,1.05338227,685.3,684.07,0.29236774]
[1747961119578,1.08836204,685.37,684.07,0.29236774]
[1747961120880,1.05338227,685.36,684.07,0.29236774]
[1747961121979,1.05338227,685.43,684.07,0.29236774]
[1747961129186,1.023,685.44,684.07,0.29236774]
[1747961132988,1.05573662,685.43,684.07,0.29236774]
[1747961134886,1.05573662,685.42,684.07,0.29236774]
[1747961136596,1.023,685.44,684.07,0.29236774]
[1747961141098,1.05540497,685.43,684.07,0.29236774]
[1747961143294,0.25402758,685.72,684.07,0.29236774]
[1747961143295,1.08836204,685.7,684.07,0.29236774]
[1747961143695,1.572,685.47,684.07,0.29236774]
[1747961144294,1.05546792,685.46,684.07,0.29236774]
[1747961145900,1.05546792,685.45,684.07,0.29236774]
[1747961147804,1.05546792,685.46,684.07,0.29236774]
[1747961161317,1.05546792,685.47,684.07,0.29236774]
[1747961164115,1.425,685.46,684.07,0.29236774]
[1747961164615,1.05546792,685.45,684.08,3.00701943]
[1747961164820,1.05546792,685.45,684.1,0.29235491]
[1747961173321,1.05546792,685.44,684.1,0.29235491]
[1747961174422,1.05546792,685.43,684.1,0.29235491]
[1747961175822,1.05546792,685.42,684.1,0.29235491]
[1747961176828,1.05546792,685.41,684.1,0.29235491]
[1747961177830,1.05546792,685.45,684.1,0.29235491]
[1747961178927,1.05546792,685.44,684.1,0.29235491]
[1747961180229,1.05546792,685.43,684.1,0.29235491]
[1747961182136,1.05546792,685.42,684.1,0.29235491]
[1747961183337,1.05546792,685.41,684.1,0.29235491]
[1747961185240,1.05546792,685.45,684.1,0.29235491]
[1747961186738,1.05546792,685.44,684.1,0.29235491]
[1747961191443,1.425,685.46,684.42,3.00701943]
[1747961191640,1.425,685.46,684.43,0.29221395]
[1747961199149,1.3423581,685.9,684.43,0.29221395]
[1747961200152,1.05115101,685.89,684.43,0.29221395]
[1747961201646,1.05115101,685.88,684.43,0.29221395]
[1747961201952,1.216,685.87,684.43,0.29221395]
[1747961202753,1.05115101,685.86,684.43,0.29221395]
[1747961203751,1.05115101,685.85,684.43,0.29221395]
[1747961204954,1.05115101,685.84,684.43,0.29221395]
[1747961206154,1.05115101,685.83,684.43,0.29221395]
[1747961207957,1.216,685.87,684.43,0.29221395]
[1747961208856,1.04939321,685.86,684.43,0.29221395]
[1747961210456,1.04939321,685.85,684.43,0.29221395]
[1747961211660,1.04939321,685.84,684.43,0.29221395]
[1747961212963,1.04939321,685.83,684.43,0.29221395]
[1747961214265,1.04939321,685.82,684.43,0.29221395]
[1747961215863,1.04939321,685.81,684.43,0.29221395]
[1747961217468,1.04939321,685.8,684.43,0.29221395]
[1747961218971,1.04939321,685.79,684.43,0.29221395]
[1747961220973,1.04939321,685.78,684.43,0.29221395]
[1747961222774,1.04939321,685.77,684.43,0.29221395]
[1747961223975,1.04939321,685.76,684.43,0.29221395]
[1747961224971,1.513,685.75,684.43,0.29221395]
[1747961225470,1.04939321,685.74,684.43,0.29221395]
[1747961233876,1.08836204,685.69,684.43,0.29221395]
[1747961235281,1.04939321,685.68,684.43,0.29221395]
[1747961235978,0.2916855,685.67,684.43,0.29221395]
[1747961236482,1.08836204,685.64,684.43,0.29221395]
[1747961236682,0.29170252,685.63,684.43,0.29221395]
[1747961237482,1.04939321,685.62,684.43,0.29221395]
[1747961237883,0.29171103,685.61,684.43,0.29221395]
[1747961239184,2.13775525,685.6,684.43,0.29221395]
[1747961239386,0.29171954,685.59,684.43,0.29221395]
[1747961240184,1.04939321,685.58,684.43,0.29221395]
[1747961240385,0.29172805,685.57,684.43,0.29221395]
[1747961240888,0.29172805,685.57,683.99,3.00701943]
[1747961241081,0.29172805,685.57,684.0,0.29239766]
[1747961241687,1.04939321,685.56,684.0,0.29239766]
[1747961241987,0.29173656,685.55,684.0,0.29239766]
[1747961242787,1.04939321,685.54,684.0,0.29239766]
[1747961242989,0.29174507,685.53,684.0,0.29239766]
[1747961243790,1.04939321,685.52,684.0,0.29239766]
[1747961243991,0.29175358,685.51,684.0,0.29239766]
[1747961245289,1.04939321,685.5,684.0,0.29239766]
[1747961245589,0.29176209,685.49,684.0,0.29239766]
[1747961246692,1.04939321,685.48,684.0,0.29239766]
[1747961246893,0.2917706,685.47,684.0,0.29239766]
[1747961248097,1.04939321,685.46,684.0,0.29239766]
[1747961253297,0.2917706,685.47,684.0,0.29239766]
[1747961254800,1.513,685.75,684.0,0.29239766]
[1747961255294,1.04828062,685.74,684.0,0.29239766]
[1747961256699,1.04828062,685.73,684.0,0.29239766]
[1747961258503,1.04828062,685.74,684.0,0.29239766]
[1747961259404,1.513,685.75,684.0,0.29239766]
[1747961262707,1.04884289,685.74,684.0,0.29239766]
[1747961263811,1.513,685.75,684.0,0.29239766]
[1747961275021,0.25397381,686.05,684.0,0.29239766]
[1747961276120,1.04877816,686.04,684.0,0.29239766]
[1747961277522,1.04877816,686.03,684.0,0.29239766]
[1747961278422,1.097,686.02,684.0,0.29239766]
[1747961278821,1.04877816,686.01,684.0,0.29239766]
[1747961280324,1.04877816,686.0,684.0,0.29239766]
[1747961281218,1.04877816,685.99,684.0,0.29239766]
[1747961282718,1.04877816,685.98,684.0,0.29239766]
[1747961283729,1.04877816,685.97,684.0,0.29239766]
[1747961285728,1.097,686.02,684.0,0.29239766]
[1747961286926,1.04755352,686.01,684.0,0.29239766]
[1747961288129,1.04755352,686.0,684.0,0.29239766]
[1747961289533,1.04755352,685.99,684.0,0.29239766]
[1747961289836,1.04755352,685.99,684.01,0.46409398]
[1747961290133,1.04755352,685.99,684.03,0.29238483]
[1747961290933,1.04755352,685.98,684.03,0.29238483]
[1747961292134,1.097,686.02,684.03,0.29238483]
[1747961297137,1.097,686.02,684.07,3.00701943]
[1747961297437,1.097,686.02,684.09,0.29235919]
[1747961308746,1.097,686.02,684.34,0.46409398]
[1747961308945,1.097,686.02,684.36,0.29224384]
[1747961311247,1.097,686.02,684.45,3.00701943]
[1747961311446,1.097,686.02,684.47,0.29219688]
[1747961315450,0.25385524,686.35,684.47,0.29219688]
[1747961315648,0.29140076,686.34,684.47,0.29219688]
[1747961316750,1.03329127,686.33,684.47,0.29219688]
[1747961317746,1.03329127,686.32,684.47,0.29219688]
[1747961319253,1.03329127,686.33,684.47,0.29219688]
[1747961319453,1.374,686.31,684.54,0.46409398]
[1747961319651,1.374,686.31,684.56,0.29215846]
[1747961320352,1.03329127,686.3,684.56,0.29215846]
[1747961324753,1.03329127,686.3,684.66,3.00701943]
[1747961325052,1.03329127,686.3,684.68,0.29210726]
[1747961327459,1.374,686.31,684.68,0.29210726]
[1747961329263,1.03191459,686.3,684.68,0.29210726]
[1747961330063,1.03191459,686.29,684.68,0.29210726]
[1747961331264,1.03191459,686.3,684.68,0.29210726]
[1747961341969,1.03191459,686.3,684.73,2.99174586]
[1747961342364,1.03191459,686.3,684.75,0.2920774]
[1747961355184,1.374,686.31,684.75,0.2920774]
[1747961363493,1.01108779,686.3,684.75,0.2920774]
[1747961364991,1.01108779,686.29,684.75,0.2920774]
[1747961366094,1.01108779,686.33,684.75,0.2920774]
[1747961368492,1.02,686.32,684.75,0.2920774]
[1747961368797,1.01108779,686.31,684.75,0.2920774]
[1747961375105,1.02,686.32,684.75,0.2920774]
[1747961377609,1.01188333,686.31,684.75,0.2920774]
[1747961378910,1.01188333,686.3,684.75,0.2920774]
[1747961380312,1.01188333,686.31,684.75,0.2920774]
[1747961403837,1.01188333,686.31,684.79,2.99174586]
[1747961404032,1.01188333,686.31,684.81,0.2920518]
[1747961406232,1.08801227,686.29,684.81,0.2920518]
[1747961409039,1.08801227,686.3,684.81,0.2920518]
[1747961410339,1.08801227,686.3,684.82,0.46409398]
[1747961410538,1.08801227,686.3,684.83,0.29204328]
[1747961411942,1.01188333,686.31,684.83,0.29204328]
[1747961414642,1.08801227,686.28,684.83,0.29204328]
[1747961415742,1.01188333,686.27,684.83,0.29204328]
[1747961417345,1.08801227,686.19,684.83,0.29204328]
[1747961418846,1.01188333,686.18,684.83,0.29204328]
[1747961420347,1.01188333,686.17,684.83,0.29204328]
[1747961421148,1.01188333,686.16,684.83,0.29204328]
[1747961422443,2.10801227,686.32,684.83,0.29204328]
[1747961422444,1.01188333,686.15,684.83,0.29204328]
[1747961423545,1.01188333,686.14,684.83,0.29204328]
[1747961425354,1.01188333,686.13,684.83,0.29204328]
[1747961426355,1.01188333,686.12,684.83,0.29204328]
[1747961427151,1.03,686.11,684.83,0.29204328]
[1747961427859,1.01188333,686.1,684.83,0.29204328]
[1747961444180,1.01188333,686.09,684.83,0.29204328]
[1747961445581,1.01188333,686.08,684.83,0.29204328]
[1747961446885,1.01188333,686.07,684.83,0.29204328]
[1747961448788,1.01188333,686.06,684.83,0.29204328]
[1747961449889,1.01188333,686.05,684.83,0.29204328]
[1747961451090,1.01188333,686.04,684.83,0.29204328]
[1747961452389,1.01188333,686.03,684.83,0.29204328]
[1747961453894,1.08801227,686.17,684.83,0.29204328]
[1747961454991,1.01188333,686.16,684.83,0.29204328]
[1747961456592,1.01188333,686.15,684.83,0.29204328]
[1747961456992,1.28,686.14,684.83,0.29204328]
[1747961457793,1.01188333,686.13,684.83,0.29204328]
[1747961459496,1.01188333,686.12,684.83,0.29204328]
[1747961461098,1.01188333,686.11,684.83,0.29204328]
[1747961462498,1.01188333,686.1,684.83,0.29204328]
[1747961463698,1.01188333,686.09,684.83,0.29204328]
[1747961464799,1.01188333,686.13,684.83,0.29204328]
[1747961468303,1.01188333,686.13,685.09,2.99174586]
[1747961481322,1.28,686.14,685.09,2.99174586]
[1747961483117,1.08801227,686.35,685.09,2.99174586]
[1747961483322,0.25370164,686.61,684.72,4.18875848]
[1747961485126,1.01972091,686.6,684.72,4.18875848]
[1747961486325,1.14,686.59,684.72,4.18875848]
[1747961487024,1.01972091,686.58,684.72,4.18875848]
[1747961488021,1.01972091,686.57,684.72,4.18875848]
[1747961489322,1.01972091,686.56,684.72,4.18875848]
[1747961490627,1.01972091,686.55,684.72,4.18875848]
[1747961491929,1.01972091,686.54,684.72,4.18875848]
[1747961493224,1.01972091,686.53,684.72,4.18875848]
[1747961494429,1.01972091,686.52,684.72,4.18875848]
[1747961495429,1.01972091,686.51,684.72,4.18875848]
[1747961497032,1.14,686.59,685.09,2.99174586]
[1747961498333,1.01287246,686.58,685.09,2.99174586]
[1747961499141,1.01287246,686.58,685.11,0.29192392]
[1747961500238,1.01287246,686.57,685.11,0.29192392]
[1747961501137,1.01287246,686.56,685.11,0.29192392]
[1747961503038,1.01287246,686.58,685.11,0.29192392]
[1747961507142,1.30417136,686.58,685.11,0.29192392]
[1747961507442,1.01287246,686.57,685.11,0.29192392]
[1747961513749,0.29130738,686.56,685.11,0.29192392]
[1747961515349,1.01287246,686.55,685.11,0.29192392]
[1747961515650,0.29131587,686.54,685.11,0.29192392]
[1747961516651,1.08801227,686.48,685.11,0.29192392]
[1747961517348,0.29134557,686.47,685.11,0.29192392]
[1747961518248,1.01287246,686.46,685.11,0.29192392]
[1747961519953,1.08801227,686.45,685.11,0.29192392]
[1747961520953,1.01287246,686.44,685.11,0.29192392]
[1747961522755,1.08801227,686.4,685.11,0.29192392]
[1747961523857,1.01287246,686.39,685.11,0.29192392]
[1747961525155,1.08801227,686.4,685.11,0.29192392]
[1747961525948,1.01287246,686.39,685.11,0.29192392]
[1747961528564,1.08801227,686.39,685.11,0.29192392]
[1747961530156,1.08801227,686.4,685.11,0.29192392]
[1747961532961,1.08801227,686.35,685.11,0.29192392]
[1747961534478,1.01287246,686.34,685.11,0.29192392]
[1747961535759,2.10088473,686.33,685.11,0.29192392]
[1747961536861,1.01287246,686.32,685.11,0.29192392]
[1747961537961,1.01287246,686.31,685.11,0.29192392]
[1747961539271,1.01287246,686.36,685.11,0.29192392]
[1747961539466,0.29139651,686.35,685.11,0.29192392]
[1747961540869,1.01287246,686.34,685.11,0.29192392]
[1747961541062,1.30427322,686.34,685.11,0.29192392]
[1747961541861,1.01287246,686.33,685.11,0.29192392]
[1747961543072,1.229,686.32,685.11,0.29192392]
[1747961543571,1.01287246,686.31,685.11,0.29192392]
[1747961552273,1.08801227,686.28,685.11,0.29192392]
[1747961553773,1.01287246,686.27,685.11,0.29192392]
[1747961555279,0.29143473,686.26,685.11,0.29192392]
[1747961555681,1.01287246,686.25,685.11,0.29192392]
[1747961555880,1.30431143,686.25,685.11,0.29192392]
[1747961556979,1.01287246,686.24,685.11,0.29192392]
[1747961577901,1.01287246,686.23,685.11,0.29192392]
[1747961578395,1.065,686.22,685.11,0.29192392]
[1747961579302,1.01287246,686.21,685.11,0.29192392]
[1747961581899,1.01287246,686.2,685.11,0.29192392]
[1747961582803,1.01287246,686.19,685.11,0.29192392]
[1747961584204,1.01287246,686.21,685.11,0.29192392]
[1747961585618,1.01287246,686.2,685.11,0.29192392]
[1747961586710,1.01287246,686.21,685.11,0.29192392]
[1747961590814,1.01287246,686.24,685.11,0.29192392]
[1747961593414,1.141,686.23,685.11,0.29192392]
[1747961594215,1.01287246,686.22,685.11,0.29192392]
[1747961602524,1.01287246,686.21,685.11,0.29192392]
[1747961603630,1.01287246,686.2,685.11,0.29192392]
[1747961605127,1.01287246,686.22,685.11,0.29192392]
[1747961606826,1.01287246,686.21,685.11,0.29192392]
[1747961608324,1.01287246,686.2,685.11,0.29192392]
[1747961609932,1.01287246,686.19,685.11,0.29192392]
[1747961611536,1.01287246,686.18,685.11,0.29192392]
[1747961612724,1.01287246,686.17,685.11,0.29192392]
[1747961614328,1.01287246,686.16,685.11,0.29192392]
[1747961615329,1.01287246,686.15,685.11,0.29192392]
[1747961616629,1.01287246,686.14,685.11,0.29192392]
[1747961617830,1.01287246,686.13,685.11,0.29192392]
[1747961619932,1.01287246,686.12,685.11,0.29192392]
[1747961620937,1.01287246,686.11,685.11,0.29192392]
[1747961622560,1.08801227,686.09,685.11,0.29192392]
[1747961623434,1.01287246,686.08,685.11,0.29192392]
[1747961624540,1.01287246,686.08,684.77,2.99174586]
[1747961624931,1.08801227,686.02,684.45,2.99174586]
[1747961625138,1.08801227,686.02,684.47,0.29219688]
[1747961626235,1.057,686.01,684.47,0.29219688]
[1747961626438,2.06987246,686.01,684.47,0.29219688]
[1747961628439,1.08801227,685.97,684.47,0.29219688]
[1747961629942,1.01287246,685.96,684.47,0.29219688]
[1747961632442,1.01287246,686.0,684.47,0.29219688]
[1747961632644,0.29154943,685.99,684.47,0.29219688]
[1747961633842,1.01287246,685.98,684.47,0.29219688]
[1747961634047,1.30442614,685.98,684.47,0.29219688]
[1747961635744,1.01287246,685.97,684.47,0.29219688]
[1747961653661,0.943,685.96,684.47,0.29219688]
[1747961664466,1.03951874,685.95,684.47,0.29219688]
[1747961665965,1.03951874,685.94,684.47,0.29219688]
[1747961667765,1.03951874,685.95,684.47,3.28394274]
[1747961669267,0.29155368,685.98,684.47,3.28394274]
[1747961669488,0.29155368,685.98,684.47,0.29219688]
[1747961669864,1.04059038,685.97,684.47,0.29219688]
[1747961671669,1.152,685.96,684.47,0.29219688]
[1747961672075,2.19259038,685.96,684.49,3.01073701]
[1747961672275,2.19259038,685.96,684.51,0.2921798]
[1747961673280,1.04059038,685.95,684.51,0.2921798]
[1747961675301,1.0885663,685.9,684.51,0.2921798]
[1747961676578,1.04059038,685.89,684.51,0.2921798]
[1747961678478,1.152,685.96,684.51,0.2921798]
[1747961678479,1.0885663,685.86,684.51,0.2921798]
[1747961679878,1.04059038,685.85,684.51,0.2921798]
[1747961681781,1.04059038,685.84,684.51,0.2921798]
[1747961683095,1.04059038,685.83,684.51,0.2921798]
[1747961684386,1.04059038,685.82,684.51,0.2921798]
[1747961684581,1.0885663,685.79,684.51,0.2921798]
[1747961685983,1.04059038,685.78,684.51,0.2921798]
[1747961687384,1.04059038,685.77,684.51,0.2921798]
[1747961687983,1.04059038,685.76,684.51,0.2921798]
[1747961689085,1.04059038,685.75,684.51,0.2921798]
[1747961690485,1.04059038,685.74,684.51,0.2921798]
[1747961691889,0.25392841,685.88,684.51,0.2921798]
[1747961691890,1.04059038,685.73,684.51,0.2921798]
[1747961692987,1.04059038,685.81,684.51,0.2921798]
[1747961694391,1.04059038,685.8,684.51,0.2921798]
[1747961695693,1.04059038,685.79,684.51,0.2921798]
[1747961696890,2.12915668,685.92,684.51,0.2921798]
[1747961697993,1.04059038,685.91,684.51,0.2921798]
[1747961699195,1.0885663,685.87,684.51,0.2921798]
[1747961700503,1.04059038,685.86,684.51,0.2921798]
[1747961701826,1.04059038,685.85,684.51,0.2921798]
[1747961703303,1.04059038,685.84,684.51,0.2921798]
[1747961704603,1.04059038,685.83,684.51,0.2921798]
[1747961705906,1.04059038,685.86,684.51,0.2921798]
[1747961707908,1.04059038,685.85,684.51,0.2921798]
[1747961709008,1.04059038,685.84,684.51,0.2921798]
[1747961709707,1.24,685.83,684.51,0.2921798]
[1747961710303,1.04059038,685.82,684.51,0.2921798]
[1747961711205,1.04059038,685.81,684.51,0.2921798]
[1747961712513,1.04059038,685.8,684.51,0.2921798]
[1747961714009,1.04059038,685.79,684.51,0.2921798]
[1747961715314,1.04059038,685.78,684.51,0.2921798]
[1747961716409,1.04059038,685.82,684.51,0.2921798]
[1747961718110,1.04059038,685.81,684.51,0.2921798]
[1747961718917,1.04059038,685.8,684.51,0.2921798]
[1747961720509,1.04059038,685.79,684.51,0.2921798]
[1747961721808,1.04059038,685.78,684.51,0.2921798]
[1747961723111,1.04059038,685.77,684.51,0.2921798]
[1747961724411,1.04059038,685.76,684.51,0.2921798]
[1747961726352,1.0885663,685.68,684.51,0.2921798]
[1747961727612,1.04059038,685.67,684.51,0.2921798]
[1747961729109,1.0885663,685.65,684.51,0.2921798]
[1747961730214,1.04059038,685.64,684.51,0.2921798]
[1747961732113,1.04059038,685.63,684.51,0.2921798]
[1747961733219,1.04059038,685.62,684.51,0.2921798]
[1747961734320,1.04059038,685.61,684.51,0.2921798]
[1747961735519,1.04059038,685.6,684.51,0.2921798]
[1747961736720,1.04059038,685.59,684.51,0.2921798]
[1747961738321,1.04059038,685.7,684.51,0.2921798]
[1747961739021,1.294,685.69,684.51,0.2921798]
[1747961739948,1.04059038,685.68,684.51,0.2921798]
[1747961741324,1.04059038,685.67,684.51,0.2921798]
[1747961743037,1.04059038,685.66,684.51,0.2921798]
[1747961744446,1.04059038,685.65,684.51,0.2921798]
[1747961745940,1.04059038,685.64,684.51,0.2921798]
[1747961746927,1.04059038,685.63,684.51,0.2921798]
[1747961749229,1.04059038,685.62,684.51,0.2921798]
[1747961750231,1.04059038,685.61,684.51,0.2921798]
[1747961752134,1.0885663,685.66,684.51,0.2921798]
[1747961753931,1.04059038,685.65,684.51,0.2921798]
[1747961755733,1.04059038,685.68,684.51,0.2921798]
[1747961763055,1.04059038,685.67,684.51,0.2921798]
[1747961763942,1.04059038,685.66,684.51,0.2921798]
[1747961765440,2.12915668,685.65,684.51,0.2921798]
[1747961767443,1.04059038,685.64,684.51,0.2921798]
[1747961769145,1.04059038,685.63,684.51,0.2921798]
[1747961770143,1.04059038,685.62,684.51,0.2921798]
[1747961771745,1.04059038,685.61,684.51,0.2921798]
[1747961772947,1.04059038,685.6,684.51,0.2921798]
[1747961773947,1.04059038,685.59,684.51,0.2921798]
[1747961775058,1.04059038,685.58,684.51,0.2921798]
[1747961776552,1.04059038,685.57,684.51,0.2921798]
[1747961777647,1.04059038,685.56,684.51,0.2921798]
[1747961778656,1.04059038,685.55,684.51,0.2921798]
[1747961779754,1.04059038,685.54,684.51,0.2921798]
[1747961782259,1.04059038,685.53,684.51,0.2921798]
[1747961782459,2.19459038,685.53,684.51,0.2921798]
[1747961784055,1.04059038,685.52,684.51,0.2921798]
[1747961785257,1.04059038,685.51,684.51,0.2921798]
[1747961787257,1.04059038,685.5,684.51,0.2921798]
[1747961788358,1.04059038,685.49,684.51,0.2921798]
[1747961789458,1.04059038,685.48,684.51,0.2921798]
[1747961791074,1.04059038,685.47,684.51,0.2921798]
[1747961792365,1.04059038,685.46,684.51,0.2921798]
[1747961793966,1.04059038,685.45,684.51,0.2921798]
[1747961795261,1.04059038,685.44,684.51,0.2921798]
[1747961796568,1.04059038,685.43,684.51,0.2921798]
[1747961797465,1.04059038,685.42,684.51,0.2921798]
[1747961798965,1.04059038,685.41,684.51,0.2921798]
[1747961799962,1.04059038,685.4,684.51,0.2921798]
[1747961801472,1.04059038,685.39,684.51,0.2921798]
[1747961802869,1.04059038,685.52,684.51,0.2921798]
[1747961804175,1.04059038,685.51,684.51,0.2921798]
[1747961805871,1.04059038,685.5,684.51,0.2921798]
[1747961807478,1.04059038,685.49,684.51,0.2921798]
[1747961808582,1.04059038,685.48,684.51,0.2921798]
[1747961810783,1.04059038,685.47,684.51,0.2921798]
[1747961811777,1.04059038,685.46,684.51,0.2921798]
[1747961812980,1.04059038,685.45,684.51,0.2921798]
[1747961814181,1.04059038,685.44,684.51,0.2921798]
[1747961815785,1.04059038,685.52,684.51,0.2921798]
[1747961817674,1.04059038,685.51,684.51,0.2921798]
[1747961819285,1.04059038,685.5,684.51,0.2921798]
[1747961820579,1.04059038,685.49,684.51,0.2921798]
[1747961820804,2.08159038,685.49,684.51,0.2921798]
[1747961822085,1.04059038,685.48,684.51,0.2921798]
[1747961827493,1.041,685.49,684.51,0.2921798]
[1747961830094,1.05866576,685.48,684.51,0.2921798]
[1747961831792,1.05866576,685.47,684.51,0.2921798]
[1747961833298,1.041,685.49,684.51,0.2921798]
[1747961835002,1.05897629,685.48,684.51,0.2921798]
[1747961836598,1.05897629,685.47,684.51,0.2921798]
[1747961838298,1.041,685.49,684.51,0.2921798]
[1747961839694,1.05901276,685.48,684.51,0.2921798]
[1747961840700,1.041,685.49,684.51,0.2921798]
[1747961876835,1.09067882,685.72,684.51,0.2921798]
[1747961877336,1.05909788,685.71,684.51,0.2921798]
[1747961878636,1.05909788,685.7,684.51,0.2921798]
[1747961879340,0.844,685.69,684.51,0.2921798]
[1747961879737,1.05909788,685.68,684.51,0.2921798]
[1747961881435,1.05909788,685.67,684.51,0.2921798]
[1747961882836,1.05909788,685.68,684.51,0.2921798]
[1747961884235,1.05909788,685.67,684.51,0.2921798]
[1747961885140,1.05909788,685.66,684.51,0.2921798]
[1747961886849,1.05909788,685.65,684.51,0.2921798]
[1747961887843,1.05909788,685.64,684.51,0.2921798]
[1747961889543,1.05909788,685.63,684.51,0.2921798]
[1747961890644,1.05909788,685.62,684.51,0.2921798]
[1747961892950,1.05909788,685.61,684.51,0.2921798]
[1747961894249,0.919,685.6,684.51,0.2921798]
[1747961894550,1.05118477,685.59,684.51,0.2921798]
[1747961896051,1.05118477,685.58,684.51,0.2921798]
[1747961897247,1.05118477,685.57,684.51,0.2921798]
[1747961898947,1.05118477,685.56,684.51,0.2921798]
[1747961899949,1.05118477,685.59,684.51,0.2921798]
[1747961901052,1.05118477,685.58,684.51,0.2921798]
[1747961902651,1.05118477,685.59,684.51,0.2921798]
[1747961904049,1.05118477,685.58,684.51,0.2921798]
[1747961904954,1.05118477,685.59,684.51,0.2921798]
[1747961930973,1.05118477,685.59,684.51,3.31852107]
[1747961933787,0.919,685.6,684.51,3.31852107]
[1747961939383,0.919,685.6,684.51,3.78261505]
[1747961941788,0.919,685.6,684.53,0.46409398]
[1747961941983,0.919,685.6,684.54,0.292167]
[1747961944089,1.05170067,685.59,684.54,0.292167]
[1747961945591,1.05170067,685.58,684.54,0.292167]
[1747961947101,1.05170067,685.81,684.54,0.292167]
[1747961947891,1.174,685.8,684.54,0.292167]
[1747961948691,1.05170067,685.79,684.54,0.292167]
[1747961949589,1.05170067,685.78,684.54,0.292167]
[1747961951094,1.05170067,685.77,684.54,0.292167]
[1747961952594,1.05170067,685.76,684.54,0.292167]
[1747961954599,1.05170067,685.75,684.54,0.292167]
[1747961955997,1.05170067,685.74,684.54,0.292167]
[1747961957496,1.05170067,685.73,684.54,0.292167]
[1747961958797,1.05170067,685.72,684.54,0.292167]